[Event "Titled Tuesday Blitz November 22 Early 2022"]
[White "Piesik, Piotr"]
[Black "Petrova, Irina"]
[WhiteFideId "1136194"]
[BlackFideId "14124122"]
[WhiteElo "2316"]
[BlackElo "2023"]
[Result "1-0"]
[Round "01"]
[TimeControl "180+1"]
[Date "2022.11.23"]
[WhiteClock "0:01:08"]
[BlackClock "0:00:14"]

1. Nf3 {[%clk 0:02:59]}  d6 {[%clk 0:03:00]} 2. d4 {[%clk 0:02:59]}  g6 {[%clk 0:03:00]} 3. g3 {[%clk 0:02:59]}  Bg7 {[%clk 0:03:01]} 4. Bg2 {[%clk 0:03:00]}  Nf6 {[%clk 0:03:01]} 5. O-O {[%clk 0:03:00]}  O-O {[%clk 0:03:01]} 6. Nbd2 {[%clk 0:03:00]}  Nc6 {[%clk 0:03:00]} 7. e4 {[%clk 0:03:00]}  e5 {[%clk 0:03:00]} 8. dxe5 {[%clk 0:03:01]}  dxe5 {[%clk 0:02:59]} 9. c3 {[%clk 0:03:01]}  Qe7 {[%clk 0:02:58]} 10. Qe2 {[%clk 0:03:00]}  Be6 {[%clk 0:02:50]} 11. b4 {[%clk 0:02:59]}  a6 {[%clk 0:02:49]} 12. a4 {[%clk 0:03:00]}  b6 {[%clk 0:02:26]} 13. Ba3 {[%clk 0:02:58]}  b5 {[%clk 0:02:13]} 14. axb5 {[%clk 0:02:58]}  axb5 {[%clk 0:02:14]} 15. Qxb5 {[%clk 0:02:58]}  Bd7 {[%clk 0:02:06]} 16. Qe2 {[%clk 0:02:55]}  Rfd8 {[%clk 0:01:54]} 17. Nc4 {[%clk 0:02:54]}  Qe6 {[%clk 0:01:34]} 18. b5 {[%clk 0:02:42]}  Na5 {[%clk 0:01:34]} 19. Ncxe5 {[%clk 0:02:29]}  Nb3 {[%clk 0:01:22]} 20. Nxd7 {[%clk 0:02:28]}  Nxd7 {[%clk 0:01:20]} 21. Ra2 {[%clk 0:02:24]}  Bxc3 {[%clk 0:01:16]} 22. e5 {[%clk 0:02:08]}  Rab8 {[%clk 0:00:40]} 23. Bb2 {[%clk 0:01:50]}  Bxb2 {[%clk 0:00:31]} 24. Rxb2 {[%clk 0:01:50]}  Nbc5 {[%clk 0:00:26]} 25. Nd4 {[%clk 0:01:43]}  Qxe5 {[%clk 0:00:20]} 26. Nc6 {[%clk 0:01:43]}  Qxe2 {[%clk 0:00:19]} 27. Rxe2 {[%clk 0:01:44]}  Nf6 {[%clk 0:00:16]} 28. Rc1 {[%clk 0:01:39]}  Ne6 {[%clk 0:00:14]} 29. Nxd8 {[%clk 0:01:33]}  Rxd8 {[%clk 0:00:15]} 30. Rb2 {[%clk 0:01:30]}  Rb8 {[%clk 0:00:15]} 31. Bh3 {[%clk 0:01:20]}  Nd5 {[%clk 0:00:15]} 32. Bxe6 {[%clk 0:01:18]}  fxe6 {[%clk 0:00:16]} 33. Rc6 {[%clk 0:01:16]}  Kf7 {[%clk 0:00:16]} 34. Kg2 {[%clk 0:01:15]}  Rb6 {[%clk 0:00:16]} 35. Rxb6 {[%clk 0:01:15]}  cxb6 {[%clk 0:00:17]} 36. Rc2 {[%clk 0:01:14]}  Ke7 {[%clk 0:00:17]} 37. Rc6 {[%clk 0:01:13]}  Kd7 {[%clk 0:00:18]} 38. Kf3 {[%clk 0:01:13]}  Ke7 {[%clk 0:00:17]} 39. Ke4 {[%clk 0:01:13]}  Kd7 {[%clk 0:00:17]} 40. Ke5 {[%clk 0:01:13]}  Ne7 {[%clk 0:00:15]} 41. Rd6+ {[%clk 0:01:11]}  Kc7 {[%clk 0:00:15]} 42. Rxe6 {[%clk 0:01:11]}  Nc8 {[%clk 0:00:14]} 43. f4 {[%clk 0:01:09]}  Kb7 {[%clk 0:00:14]} 44. Kd5 {[%clk 0:01:08]}  Na7 {[%clk 0:00:14]} 45. Re7+ {[%clk 0:01:08]}  Kb8 {[%clk 0:00:15]} 46. Rxa7 {[%clk 0:01:08]}  Kxa7 {[%clk 0:00:14]} 47. Kc6 {[%clk 0:01:08]} 1-0


[Site "https://www.chess.com"]

[Event "Titled Tuesday Blitz November 22 Early 2022"]
[White "Pinheiro, Iung Alicio de O."]
[Black "Larina, Maria"]
[WhiteFideId "2104350"]
[BlackFideId "24113182"]
[WhiteElo "2283"]
[BlackElo "1848"]
[Result "1-0"]
[Round "01"]
[TimeControl "180+1"]
[Date "2022.11.23"]
[WhiteClock "0:01:21"]
[BlackClock "0:01:19"]

1. e4 {[%clk 0:02:59]}  c6 {[%clk 0:02:58]} 2. Nc3 {[%clk 0:02:57]}  d5 {[%clk 0:02:58]} 3. Nf3 {[%clk 0:02:57]}  Bg4 {[%clk 0:02:58]} 4. h3 {[%clk 0:02:55]}  Bxf3 {[%clk 0:02:57]} 5. Qxf3 {[%clk 0:02:55]}  e6 {[%clk 0:02:58]} 6. d4 {[%clk 0:02:53]}  dxe4 {[%clk 0:02:58]} 7. Qxe4 {[%clk 0:02:50]}  Nf6 {[%clk 0:02:57]} 8. Qd3 {[%clk 0:02:49]}  Na6 {[%clk 0:02:55]} 9. a3 {[%clk 0:02:46]}  Nc7 {[%clk 0:02:37]} 10. g3 {[%clk 0:02:41]}  Be7 {[%clk 0:02:37]} 11. Bg2 {[%clk 0:02:40]}  O-O {[%clk 0:02:37]} 12. O-O {[%clk 0:02:41]}  Ncd5 {[%clk 0:02:27]} 13. Ne2 {[%clk 0:02:37]}  Qd7 {[%clk 0:02:15]} 14. c4 {[%clk 0:02:36]}  Nb6 {[%clk 0:02:13]} 15. Rd1 {[%clk 0:02:09]}  Rfd8 {[%clk 0:02:13]} 16. Nc3 {[%clk 0:02:06]}  a5 {[%clk 0:02:12]} 17. b3 {[%clk 0:01:51]}  h6 {[%clk 0:02:12]} 18. Be3 {[%clk 0:01:48]}  Rac8 {[%clk 0:01:29]} 19. d5 {[%clk 0:01:36]}  cxd5 {[%clk 0:01:27]} 20. Bxb6 {[%clk 0:01:35]}  dxc4 {[%clk 0:01:23]} 21. Qe2 {[%clk 0:01:27]}  Qe8 {[%clk 0:01:18]} 22. Bxd8 {[%clk 0:01:27]}  Rxd8 {[%clk 0:01:18]} 23. Rxd8 {[%clk 0:01:21]}  Qxd8 {[%clk 0:01:19]} 24. Qxc4 {[%clk 0:01:21]} 1-0


[Site "https://www.chess.com"]

[Event "Titled Tuesday Blitz November 22 Early 2022"]
[White "Postnikov, Daniil"]
[Black "Jiganchine, Roman"]
[WhiteFideId "4166329"]
[BlackFideId "2603667"]
[WhiteElo "2261"]
[BlackElo "2310"]
[Result "1/2-1/2"]
[Round "01"]
[TimeControl "180+1"]
[Date "2022.11.23"]
[WhiteClock "0:00:09"]
[BlackClock "0:00:06"]

1. e4 {[%clk 0:02:58]}  c6 {[%clk 0:02:59]} 2. d4 {[%clk 0:02:58]}  d5 {[%clk 0:02:58]} 3. e5 {[%clk 0:02:58]}  Bf5 {[%clk 0:02:53]} 4. Nf3 {[%clk 0:02:58]}  e6 {[%clk 0:02:53]} 5. Be2 {[%clk 0:02:56]}  Nd7 {[%clk 0:02:52]} 6. O-O {[%clk 0:02:55]}  a6 {[%clk 0:02:52]} 7. Nbd2 {[%clk 0:02:54]}  h5 {[%clk 0:02:52]} 8. Nb3 {[%clk 0:02:54]}  c5 {[%clk 0:02:52]} 9. dxc5 {[%clk 0:02:20]}  Bxc5 {[%clk 0:02:47]} 10. Nxc5 {[%clk 0:02:16]}  Nxc5 {[%clk 0:02:48]} 11. Nd4 {[%clk 0:02:16]}  Bg6 {[%clk 0:02:46]} 12. f4 {[%clk 0:02:13]}  Ne7 {[%clk 0:02:36]} 13. Be3 {[%clk 0:02:13]}  Rc8 {[%clk 0:02:32]} 14. c3 {[%clk 0:02:12]}  Nf5 {[%clk 0:02:22]} 15. Nxf5 {[%clk 0:02:10]}  Bxf5 {[%clk 0:02:23]} 16. Bxc5 {[%clk 0:01:36]}  Rxc5 {[%clk 0:02:22]} 17. Bd3 {[%clk 0:01:37]}  Bxd3 {[%clk 0:02:15]} 18. Qxd3 {[%clk 0:01:38]}  g6 {[%clk 0:02:15]} 19. Rf2 {[%clk 0:01:26]}  O-O {[%clk 0:02:15]} 20. Kh1 {[%clk 0:01:26]}  b5 {[%clk 0:02:08]} 21. Rg1 {[%clk 0:01:22]}  Rc4 {[%clk 0:02:00]} 22. b3 {[%clk 0:01:16]}  Rc6 {[%clk 0:01:50]} 23. Rf3 {[%clk 0:01:15]}  Qc7 {[%clk 0:01:42]} 24. g4 {[%clk 0:01:15]}  hxg4 {[%clk 0:01:32]} 25. Rxg4 {[%clk 0:01:15]}  b4 {[%clk 0:01:30]} 26. Rfg3 {[%clk 0:01:00]}  Rc8 {[%clk 0:00:53]} 27. Rxg6+ {[%clk 0:00:50]}  Kf8 {[%clk 0:00:53]} 28. Rg8+ {[%clk 0:00:24]}  Ke7 {[%clk 0:00:53]} 29. Rxc8 {[%clk 0:00:24]}  Qxc8 {[%clk 0:00:53]} 30. cxb4 {[%clk 0:00:25]}  Rc1+ {[%clk 0:00:50]} 31. Kg2 {[%clk 0:00:22]}  Rc2+ {[%clk 0:00:46]} 32. Kg1 {[%clk 0:00:12]}  Rc1+ {[%clk 0:00:44]} 33. Kg2 {[%clk 0:00:12]}  Rc2+ {[%clk 0:00:44]} 34. Kh1 {[%clk 0:00:12]}  Rc1+ {[%clk 0:00:44]} 35. Rg1 {[%clk 0:00:12]}  Rxg1+ {[%clk 0:00:31]} 36. Kxg1 {[%clk 0:00:13]}  Qc1+ {[%clk 0:00:31]} 37. Qf1 {[%clk 0:00:14]}  Qe3+ {[%clk 0:00:31]} 38. Qf2 {[%clk 0:00:14]}  Qc1+ {[%clk 0:00:25]} 39. Kg2 {[%clk 0:00:14]}  Qb1 {[%clk 0:00:20]} 40. Qa7+ {[%clk 0:00:13]}  Kf8 {[%clk 0:00:18]} 41. Qxa6 {[%clk 0:00:13]}  Qe4+ {[%clk 0:00:18]} 42. Kg3 {[%clk 0:00:12]}  Qe3+ {[%clk 0:00:18]} 43. Kg4 {[%clk 0:00:13]}  Qg1+ {[%clk 0:00:18]} 44. Kf3 {[%clk 0:00:12]}  Qh1+ {[%clk 0:00:18]} 45. Ke3 {[%clk 0:00:12]}  Qe4+ {[%clk 0:00:18]} 46. Kd2 {[%clk 0:00:12]}  Qxf4+ {[%clk 0:00:18]} 47. Kc2 {[%clk 0:00:12]}  Qxh2+ {[%clk 0:00:15]} 48. Kb1 {[%clk 0:00:10]}  Qg1+ {[%clk 0:00:13]} 49. Kb2 {[%clk 0:00:10]}  Qh2+ {[%clk 0:00:12]} 50. Ka3 {[%clk 0:00:10]}  Qxe5 {[%clk 0:00:12]} 51. b5 {[%clk 0:00:10]}  d4 {[%clk 0:00:07]} 52. b6 {[%clk 0:00:10]}  Qc5+ {[%clk 0:00:07]} 53. Ka4 {[%clk 0:00:07]}  Qc6+ {[%clk 0:00:07]} 54. Ka5 {[%clk 0:00:05]}  Qc5+ {[%clk 0:00:08]} 55. Ka4 {[%clk 0:00:06]}  Qc6+ {[%clk 0:00:07]} 56. Ka3 {[%clk 0:00:06]}  Qc5+ {[%clk 0:00:07]} 57. b4 {[%clk 0:00:06]}  Qc3+ {[%clk 0:00:07]} 58. Ka4 {[%clk 0:00:06]}  Qc2+ {[%clk 0:00:07]} 59. Kb5 {[%clk 0:00:06]}  Qe2+ {[%clk 0:00:06]} 60. Ka5 {[%clk 0:00:07]}  Qxa2+ {[%clk 0:00:06]} 61. Kb5 {[%clk 0:00:08]}  Qe2+ {[%clk 0:00:06]} 62. Ka5 {[%clk 0:00:08]}  Qa2+ {[%clk 0:00:06]} 63. Kb5 {[%clk 0:00:08]}  Qe2+ {[%clk 0:00:07]} 64. Ka5 {[%clk 0:00:09]}  Qa2+ {[%clk 0:00:06]} 1/2-1/2


[Site "https://www.chess.com"]

[Event "Titled Tuesday Blitz November 22 Early 2022"]
[White "Rakhmanov, Aleksandr"]
[Black "Jimenez Almeida, Luis David"]
[WhiteFideId "4173708"]
[BlackFideId "22242244"]
[WhiteElo "2530"]
[BlackElo "2158"]
[Result "1/2-1/2"]
[Round "01"]
[TimeControl "180+1"]
[Date "2022.11.23"]
[WhiteClock "0:00:06"]
[BlackClock "0:00:03"]

1. d4 {[%clk 0:02:58]}  g6 {[%clk 0:02:57]} 2. c4 {[%clk 0:02:58]}  Bg7 {[%clk 0:02:57]} 3. Nf3 {[%clk 0:02:58]}  c5 {[%clk 0:02:54]} 4. d5 {[%clk 0:02:58]}  d6 {[%clk 0:02:54]} 5. e4 {[%clk 0:02:56]}  b5 {[%clk 0:02:53]} 6. cxb5 {[%clk 0:02:55]}  a6 {[%clk 0:02:53]} 7. b6 {[%clk 0:02:48]}  Nd7 {[%clk 0:02:51]} 8. Nc3 {[%clk 0:02:48]}  Qxb6 {[%clk 0:02:51]} 9. Be2 {[%clk 0:02:46]}  Ngf6 {[%clk 0:02:50]} 10. O-O {[%clk 0:02:46]}  O-O {[%clk 0:02:50]} 11. Nd2 {[%clk 0:02:46]}  Bb7 {[%clk 0:02:16]} 12. Nc4 {[%clk 0:02:46]}  Qc7 {[%clk 0:02:16]} 13. Bf4 {[%clk 0:02:33]}  Ne8 {[%clk 0:02:11]} 14. Qd2 {[%clk 0:02:28]}  Nb6 {[%clk 0:02:09]} 15. b3 {[%clk 0:01:52]}  Nxc4 {[%clk 0:01:56]} 16. bxc4 {[%clk 0:01:47]}  Qa5 {[%clk 0:01:55]} 17. Rfc1 {[%clk 0:01:40]}  Nf6 {[%clk 0:01:55]} 18. Rab1 {[%clk 0:01:37]}  Rfb8 {[%clk 0:01:49]} 19. Rb3 {[%clk 0:01:16]}  Bc8 {[%clk 0:01:45]} 20. Qc2 {[%clk 0:00:43]}  Nd7 {[%clk 0:01:36]} 21. Bd2 {[%clk 0:00:35]}  Qc7 {[%clk 0:01:26]} 22. Rcb1 {[%clk 0:00:34]}  Rxb3 {[%clk 0:01:16]} 23. axb3 {[%clk 0:00:35]}  Rb8 {[%clk 0:01:10]} 24. Ra1 {[%clk 0:00:31]}  Bd4 {[%clk 0:01:04]} 25. Ra3 {[%clk 0:00:28]}  Nf8 {[%clk 0:00:52]} 26. Nd1 {[%clk 0:00:28]}  e6 {[%clk 0:00:48]} 27. Bc3 {[%clk 0:00:20]}  Bxc3 {[%clk 0:00:27]} 28. Nxc3 {[%clk 0:00:19]}  e5 {[%clk 0:00:27]} 29. Qd2 {[%clk 0:00:18]}  Qe7 {[%clk 0:00:26]} 30. Bd1 {[%clk 0:00:18]}  Kg7 {[%clk 0:00:24]} 31. Bc2 {[%clk 0:00:19]}  h6 {[%clk 0:00:23]} 32. Nd1 {[%clk 0:00:19]}  Qg5 {[%clk 0:00:21]} 33. Qxg5 {[%clk 0:00:13]}  hxg5 {[%clk 0:00:22]} 34. Ne3 {[%clk 0:00:14]}  Nh7 {[%clk 0:00:20]} 35. Kf1 {[%clk 0:00:14]}  g4 {[%clk 0:00:18]} 36. Ke1 {[%clk 0:00:12]}  Kh6 {[%clk 0:00:18]} 37. Kd2 {[%clk 0:00:12]}  Kg5 {[%clk 0:00:18]} 38. Kc3 {[%clk 0:00:12]}  f5 {[%clk 0:00:19]} 39. Ra1 {[%clk 0:00:09]}  Nf6 {[%clk 0:00:18]} 40. exf5 {[%clk 0:00:06]}  gxf5 {[%clk 0:00:18]} 41. Rh1 {[%clk 0:00:07]}  Bd7 {[%clk 0:00:18]} 42. Nf1 {[%clk 0:00:07]}  Rh8 {[%clk 0:00:17]} 43. Nd2 {[%clk 0:00:07]}  f4 {[%clk 0:00:14]} 44. Ne4+ {[%clk 0:00:07]}  Nxe4+ {[%clk 0:00:14]} 45. Bxe4 {[%clk 0:00:08]}  Bf5 {[%clk 0:00:15]} 46. Kd3 {[%clk 0:00:08]}  a5 {[%clk 0:00:10]} 47. h3 {[%clk 0:00:06]}  gxh3 {[%clk 0:00:09]} 48. Bxf5 {[%clk 0:00:05]}  Kxf5 {[%clk 0:00:07]} 49. gxh3 {[%clk 0:00:05]}  e4+ {[%clk 0:00:06]} 50. Kd2 {[%clk 0:00:05]}  Rh4 {[%clk 0:00:06]} 51. Rh2 {[%clk 0:00:05]}  f3 {[%clk 0:00:06]} 52. Ke3 {[%clk 0:00:05]}  Ke5 {[%clk 0:00:05]} 53. Rh1 {[%clk 0:00:06]}  Kf5 {[%clk 0:00:06]} 54. Rh2 {[%clk 0:00:06]}  Ke5 {[%clk 0:00:05]} 55. Rh1 {[%clk 0:00:06]}  Kf5 {[%clk 0:00:03]} 56. Rg1 {[%clk 0:00:07]}  Rxh3 {[%clk 0:00:03]} 57. Rg8 {[%clk 0:00:08]}  Rh1 {[%clk 0:00:03]} 58. Rf8+ {[%clk 0:00:08]}  Ke5 {[%clk 0:00:03]} 59. Re8+ {[%clk 0:00:09]}  Kf5 {[%clk 0:00:04]} 60. Rf8+ {[%clk 0:00:06]}  Ke5 {[%clk 0:00:04]} 61. Re8+ {[%clk 0:00:05]}  Kf5 {[%clk 0:00:03]} 62. Rf8+ {[%clk 0:00:06]} 1/2-1/2


[Site "https://www.chess.com"]

[Event "Titled Tuesday Blitz November 22 Early 2022"]
[White "Reprintsev, Alexander"]
[Black "Durarbayli, Vasif"]
[WhiteFideId "14100541"]
[BlackFideId "13402935"]
[WhiteElo "2230"]
[BlackElo "2586"]
[Result "0-1"]
[Round "01"]
[TimeControl "180+1"]
[Date "2022.11.23"]
[WhiteClock "0:01:05"]
[BlackClock "0:00:27"]

1. e4 {[%clk 0:02:55]}  c5 {[%clk 0:02:58]} 2. b3 {[%clk 0:02:55]}  g6 {[%clk 0:02:55]} 3. Bb2 {[%clk 0:02:54]}  Nf6 {[%clk 0:02:55]} 4. e5 {[%clk 0:02:54]}  Nd5 {[%clk 0:02:55]} 5. Nc3 {[%clk 0:02:54]}  Nxc3 {[%clk 0:02:53]} 6. dxc3 {[%clk 0:02:55]}  Bg7 {[%clk 0:02:52]} 7. Qd5 {[%clk 0:02:53]}  Nc6 {[%clk 0:02:30]} 8. Nf3 {[%clk 0:02:52]}  Qa5 {[%clk 0:02:23]} 9. b4 {[%clk 0:02:41]}  Qb6 {[%clk 0:02:11]} 10. O-O-O {[%clk 0:02:22]}  cxb4 {[%clk 0:02:06]} 11. Bc4 {[%clk 0:02:10]}  O-O {[%clk 0:02:05]} 12. Bb3 {[%clk 0:02:04]}  bxc3 {[%clk 0:01:44]} 13. Bxc3 {[%clk 0:02:03]}  d6 {[%clk 0:01:45]} 14. Rhe1 {[%clk 0:02:00]}  Be6 {[%clk 0:01:40]} 15. Qd2 {[%clk 0:01:53]}  Bxb3 {[%clk 0:01:28]} 16. axb3 {[%clk 0:01:54]}  dxe5 {[%clk 0:01:28]} 17. Nxe5 {[%clk 0:01:50]}  Rad8 {[%clk 0:01:22]} 18. Nxc6 {[%clk 0:01:39]}  Rxd2 {[%clk 0:00:52]} 19. Nxe7+ {[%clk 0:01:37]}  Kh8 {[%clk 0:00:52]} 20. Bxg7+ {[%clk 0:01:38]}  Kxg7 {[%clk 0:00:53]} 21. Rxd2 {[%clk 0:01:38]}  Rd8 {[%clk 0:00:46]} 22. Rde2 {[%clk 0:01:31]}  a5 {[%clk 0:00:42]} 23. Re4 {[%clk 0:01:27]}  Qxf2 {[%clk 0:00:39]} 24. R1e2 {[%clk 0:01:26]}  Qf1+ {[%clk 0:00:37]} 25. Kb2 {[%clk 0:01:26]}  Qf6+ {[%clk 0:00:37]} 26. Ka2 {[%clk 0:01:22]}  Rd1 {[%clk 0:00:35]} 27. Re5 {[%clk 0:01:21]}  Qf1 {[%clk 0:00:28]} 28. h3 {[%clk 0:01:08]}  b5 {[%clk 0:00:28]} 29. Nc6 {[%clk 0:01:05]}  b4 {[%clk 0:00:27]} 0-1


[Site "https://www.chess.com"]

[Event "Titled Tuesday Blitz November 22 Early 2022"]
[White "Salinas Herrera, Pablo"]
[Black "Mohammed, Dilshad"]
[WhiteFideId "3407128"]
[BlackFideId "5050421"]
[WhiteElo "2557"]
[BlackElo "2102"]
[Result "0-1"]
[Round "01"]
[TimeControl "180+1"]
[Date "2022.11.23"]
[WhiteClock "0:00:02"]
[BlackClock "0:00:16"]

1. e4 {[%clk 0:02:58]}  e5 {[%clk 0:02:59]} 2. Nf3 {[%clk 0:02:57]}  Nc6 {[%clk 0:02:59]} 3. Bc4 {[%clk 0:02:55]}  Nf6 {[%clk 0:02:58]} 4. d3 {[%clk 0:02:55]}  Be7 {[%clk 0:02:58]} 5. O-O {[%clk 0:02:54]}  O-O {[%clk 0:02:58]} 6. a4 {[%clk 0:02:55]}  d6 {[%clk 0:02:56]} 7. h3 {[%clk 0:02:53]}  h6 {[%clk 0:02:54]} 8. Nc3 {[%clk 0:02:51]}  a6 {[%clk 0:02:54]} 9. Be3 {[%clk 0:02:49]}  Be6 {[%clk 0:02:54]} 10. Nd5 {[%clk 0:02:49]}  Bxd5 {[%clk 0:02:45]} 11. Bxd5 {[%clk 0:02:33]}  Nxd5 {[%clk 0:02:44]} 12. exd5 {[%clk 0:02:33]}  Nb8 {[%clk 0:02:43]} 13. Nd2 {[%clk 0:02:21]}  Bg5 {[%clk 0:02:36]} 14. a5 {[%clk 0:02:07]}  Nd7 {[%clk 0:02:36]} 15. c4 {[%clk 0:02:06]}  f5 {[%clk 0:02:36]} 16. f4 {[%clk 0:01:51]}  exf4 {[%clk 0:02:36]} 17. Bxf4 {[%clk 0:01:52]}  Bxf4 {[%clk 0:02:36]} 18. Rxf4 {[%clk 0:01:51]}  Ne5 {[%clk 0:02:35]} 19. Qb3 {[%clk 0:01:43]}  Qg5 {[%clk 0:02:27]} 20. Raf1 {[%clk 0:01:43]}  Qg3 {[%clk 0:02:10]} 21. Rxf5 {[%clk 0:01:01]}  Qe3+ {[%clk 0:01:57]} 22. Kh1 {[%clk 0:00:18]}  Rxf5 {[%clk 0:01:53]} 23. Rxf5 {[%clk 0:00:19]}  Qxd2 {[%clk 0:01:53]} 24. Qxb7 {[%clk 0:00:19]}  Re8 {[%clk 0:01:42]} 25. Qxc7 {[%clk 0:00:19]}  Ng4 {[%clk 0:01:38]} 26. Qf7+ {[%clk 0:00:16]}  Kh7 {[%clk 0:01:34]} 27. hxg4 {[%clk 0:00:14]}  Qe1+ {[%clk 0:01:23]} 28. Rf1 {[%clk 0:00:14]}  Qh4+ {[%clk 0:01:16]} 29. Kg1 {[%clk 0:00:14]}  Re5 {[%clk 0:01:13]} 30. Qf3 {[%clk 0:00:10]}  Rg5 {[%clk 0:01:10]} 31. Qe4+ {[%clk 0:00:10]}  Rg6 {[%clk 0:01:07]} 32. Rf4 {[%clk 0:00:09]}  Qg5 {[%clk 0:00:54]} 33. b4 {[%clk 0:00:09]}  Qd8 {[%clk 0:00:48]} 34. d4 {[%clk 0:00:05]}  Qc7 {[%clk 0:00:45]} 35. c5 {[%clk 0:00:06]}  Qb7 {[%clk 0:00:43]} 36. cxd6 {[%clk 0:00:05]}  Qxb4 {[%clk 0:00:42]} 37. d7 {[%clk 0:00:04]}  Qd6 {[%clk 0:00:41]} 38. Rf7 {[%clk 0:00:02]}  Qc7 {[%clk 0:00:29]} 39. Qf5 {[%clk 0:00:02]}  Qc1+ {[%clk 0:00:28]} 40. Kh2 {[%clk 0:00:03]}  Qc7+ {[%clk 0:00:24]} 41. Qe5 {[%clk 0:00:03]}  Qxa5 {[%clk 0:00:20]} 42. Qe8 {[%clk 0:00:02]}  Rd6 {[%clk 0:00:18]} 43. Qe4+ {[%clk 0:00:02]}  Rg6 {[%clk 0:00:18]} 44. Rf8 {[%clk 0:00:02]}  Qc7+ {[%clk 0:00:16]} 0-1


[Site "https://www.chess.com"]

[Event "Titled Tuesday Blitz November 22 Early 2022"]
[White "Sanchez, Robert"]
[Black "Garcia Ramos, Daniel"]
[WhiteFideId "2034360"]
[BlackFideId "32010311"]
[WhiteElo "2294"]
[BlackElo "2357"]
[Result "0-1"]
[Round "01"]
[TimeControl "180+1"]
[Date "2022.11.23"]
[WhiteClock "0:00:24"]
[BlackClock "0:00:09"]

1. e4 {[%clk 0:03:00]}  c6 {[%clk 0:02:58]} 2. d4 {[%clk 0:03:00]}  d5 {[%clk 0:02:58]} 3. e5 {[%clk 0:03:01]}  Bf5 {[%clk 0:02:56]} 4. Nf3 {[%clk 0:03:00]}  e6 {[%clk 0:02:56]} 5. Be2 {[%clk 0:02:58]}  Nd7 {[%clk 0:02:54]} 6. O-O {[%clk 0:02:58]}  a6 {[%clk 0:02:52]} 7. c3 {[%clk 0:02:58]}  h6 {[%clk 0:02:52]} 8. Nbd2 {[%clk 0:02:55]}  c5 {[%clk 0:02:46]} 9. Re1 {[%clk 0:02:43]}  Qc7 {[%clk 0:02:45]} 10. Nf1 {[%clk 0:02:43]}  Ne7 {[%clk 0:02:39]} 11. Ng3 {[%clk 0:02:42]}  Bh7 {[%clk 0:02:28]} 12. Be3 {[%clk 0:02:36]}  Nf5 {[%clk 0:02:25]} 13. Nxf5 {[%clk 0:02:36]}  Bxf5 {[%clk 0:02:26]} 14. Rc1 {[%clk 0:02:27]}  c4 {[%clk 0:02:15]} 15. b3 {[%clk 0:02:25]}  b5 {[%clk 0:02:11]} 16. Nd2 {[%clk 0:02:12]}  Ba3 {[%clk 0:01:58]} 17. f4 {[%clk 0:02:05]}  Bxc1 {[%clk 0:01:51]} 18. Qxc1 {[%clk 0:02:05]}  cxb3 {[%clk 0:01:51]} 19. axb3 {[%clk 0:02:03]}  Rc8 {[%clk 0:01:51]} 20. c4 {[%clk 0:02:02]}  bxc4 {[%clk 0:01:45]} 21. bxc4 {[%clk 0:02:02]}  dxc4 {[%clk 0:01:45]} 22. Nxc4 {[%clk 0:01:58]}  O-O {[%clk 0:01:45]} 23. Qa3 {[%clk 0:01:57]}  Rb8 {[%clk 0:01:31]} 24. Nd6 {[%clk 0:01:40]}  Qxd6 {[%clk 0:01:15]} 25. Qxd6 {[%clk 0:01:39]}  Nb6 {[%clk 0:01:09]} 26. g4 {[%clk 0:01:30]}  Be4 {[%clk 0:01:07]} 27. Bf2 {[%clk 0:01:28]}  Nd5 {[%clk 0:00:53]} 28. Bg3 {[%clk 0:01:09]}  Rb2 {[%clk 0:00:46]} 29. Bf1 {[%clk 0:01:05]}  Bf3 {[%clk 0:00:37]} 30. f5 {[%clk 0:00:56]}  Rb6 {[%clk 0:00:31]} 31. Qc5 {[%clk 0:00:46]}  Bxg4 {[%clk 0:00:29]} 32. Bg2 {[%clk 0:00:45]}  Rb5 {[%clk 0:00:26]} 33. Qd6 {[%clk 0:00:36]}  Bxf5 {[%clk 0:00:25]} 34. Qxa6 {[%clk 0:00:36]}  Rb2 {[%clk 0:00:19]} 35. Rf1 {[%clk 0:00:36]}  Ne3 {[%clk 0:00:17]} 36. Rf2 {[%clk 0:00:31]}  Rb1+ {[%clk 0:00:17]} 37. Bf1 {[%clk 0:00:31]}  Rfb8 {[%clk 0:00:14]} 38. Bf4 {[%clk 0:00:28]}  Rxf1+ {[%clk 0:00:10]} 39. Rxf1 {[%clk 0:00:28]}  Nxf1 {[%clk 0:00:11]} 40. Kxf1 {[%clk 0:00:28]}  Rb3 {[%clk 0:00:08]} 41. Bg3 {[%clk 0:00:24]}  Bd3+ {[%clk 0:00:08]} 42. Qxd3 {[%clk 0:00:24]}  Rxd3 {[%clk 0:00:09]} 0-1


[Site "https://www.chess.com"]

[Event "Titled Tuesday Blitz November 22 Early 2022"]
[White "Seo, Jung Min"]
[Black "Ciuffoletti, Paolo"]
[WhiteFideId "1734687"]
[BlackFideId "807630"]
[WhiteElo "2455"]
[BlackElo "2143"]
[Result "1-0"]
[Round "01"]
[TimeControl "180+1"]
[Date "2022.11.23"]
[WhiteClock "0:01:40"]
[BlackClock "0:00:01"]

1. e4 {[%clk 0:02:59]}  c5 {[%clk 0:02:59]} 2. Nc3 {[%clk 0:02:51]}  Nc6 {[%clk 0:02:59]} 3. Nf3 {[%clk 0:02:51]}  Nf6 {[%clk 0:02:56]} 4. d4 {[%clk 0:02:50]}  cxd4 {[%clk 0:02:56]} 5. Nxd4 {[%clk 0:02:51]}  e5 {[%clk 0:02:56]} 6. Ndb5 {[%clk 0:02:50]}  d6 {[%clk 0:02:56]} 7. Nd5 {[%clk 0:02:49]}  Nxd5 {[%clk 0:02:51]} 8. exd5 {[%clk 0:02:50]}  Nb8 {[%clk 0:02:50]} 9. a4 {[%clk 0:02:48]}  Be7 {[%clk 0:02:43]} 10. Be2 {[%clk 0:02:48]}  O-O {[%clk 0:02:37]} 11. O-O {[%clk 0:02:47]}  f5 {[%clk 0:02:26]} 12. b4 {[%clk 0:02:43]}  a5 {[%clk 0:01:59]} 13. bxa5 {[%clk 0:02:42]}  Rxa5 {[%clk 0:01:40]} 14. Bd2 {[%clk 0:02:41]}  Ra8 {[%clk 0:01:40]} 15. a5 {[%clk 0:02:40]}  Na6 {[%clk 0:01:31]} 16. c4 {[%clk 0:02:40]}  e4 {[%clk 0:01:23]} 17. Bc3 {[%clk 0:02:36]}  Bf6 {[%clk 0:01:23]} 18. Bxf6 {[%clk 0:02:35]}  Qxf6 {[%clk 0:01:21]} 19. f3 {[%clk 0:02:25]}  e3 {[%clk 0:01:15]} 20. f4 {[%clk 0:02:25]}  Bd7 {[%clk 0:01:09]} 21. Qd4 {[%clk 0:02:21]}  Qxd4 {[%clk 0:00:58]} 22. Nxd4 {[%clk 0:02:20]}  Nc5 {[%clk 0:00:58]} 23. Ra3 {[%clk 0:02:19]}  Rfe8 {[%clk 0:00:56]} 24. Rf3 {[%clk 0:02:09]}  Re4 {[%clk 0:00:54]} 25. Nc2 {[%clk 0:02:07]}  Ba4 {[%clk 0:00:42]} 26. Nxe3 {[%clk 0:02:00]}  Rae8 {[%clk 0:00:41]} 27. Bf1 {[%clk 0:01:54]}  h6 {[%clk 0:00:18]} 28. Nxf5 {[%clk 0:01:53]}  Rd8 {[%clk 0:00:14]} 29. g3 {[%clk 0:01:47]}  Kh7 {[%clk 0:00:11]} 30. Rfe3 {[%clk 0:01:47]}  g6 {[%clk 0:00:07]} 31. Rxe4 {[%clk 0:01:46]}  Nxe4 {[%clk 0:00:07]} 32. Nd4 {[%clk 0:01:46]}  Nc5 {[%clk 0:00:03]} 33. Ne6 {[%clk 0:01:45]}  Nxe6 {[%clk 0:00:03]} 34. dxe6 {[%clk 0:01:46]}  Be8 {[%clk 0:00:01]} 35. a6 {[%clk 0:01:45]}  bxa6 {[%clk 0:00:01]} 36. Rxa6 {[%clk 0:01:45]}  Kg7 {[%clk 0:00:01]} 37. Bh3 {[%clk 0:01:39]}  Kf6 {[%clk 0:00:01]} 38. Ra7 {[%clk 0:01:40]} 1-0


[Site "https://www.chess.com"]